[Event "FIDE World Cup O10-B 2024"]
[Site "Batumi"]
[Date "2024.06.24"]
[Round "2.10"]
[White "Lazarev, Egor"]
[Black "Jibladze, Nikoloz"]
[Result "1/2-1/2"]
[ECO "B06"]
[WhiteElo "1683"]
[BlackElo "1612"]
[Annotator "NA RC"]
[PlyCount "74"]
[EventDate "2024.06.23"]
[EventType "swiss"]
[EventCountry "GEO"]
[SourceTitle "playchess.com"]
[Source "ChessBase"]
[SourceQuality "1"]
[TimeControl "5400+30"]

1. d4 {[%emt 0:00:07]} g6 {[%emt 0:00:25]} 2. e4 {[%emt 0:00:06]} Bg7 {[%emt 0:00:06]} 3. Nc3 {[%emt 0:00:04]} d6 {[%emt 0:00:08]} 4. f4 {[%emt 0:01:47]} Na6 {[%emt 0:05:38]} 5. Be3 {[%emt 0:03:34]} Nf6 {[%emt 0:00:14]} 6. h3 {[%emt 0:07:28]} O-O {[%emt 0:05:28]} 7. Qd2 {[%emt 0:00:20]} c6 {[%emt 0:01:11]} 8. Nf3 {[%emt 0:03:50]} b5 {[%emt 0:04:48]} 9. a3 {[%emt 0:01:00]} Nc7 {[%emt 0:04:55]} 10. Bd3 {[%emt 0:00:45]} Bb7 {[%emt 0:02:46]} 11. O-O {[%emt 0:01:44]} d5 {[%emt 0:06:59]} 12. e5 {[%emt 0:00:21]} Nd7 {[%emt 0:00:10]} 13. b4 {[%emt 0:00:50]} Nb6 {[%emt 0:08:04]} 14. Qf2 {[%emt 0:01:46]} Nc4 {[%emt 0:02:29]} 15. Bxc4 {[%emt 0:00:29]} dxc4 {[%emt 0:03:41]} 16. g4 {[%emt 0:03:40]} f6 {[%emt 0:07:38]} 17. Kh2 {[%emt 0:04:37]} Bc8 {[%emt 0:06:54]} 18. Qg3 {[%emt 0:01:29]} Nd5 {[%emt 0:01:09]} 19. Nxd5 {[%emt 0:01:24]} Qxd5 {[%emt 0:02:18]} 20. Nd2 {[%emt 0:06:24]} fxe5 {[%emt 0:04:16]} 21. fxe5 {[%emt 0:01:00]} Bb7 {[%emt 0:03:31]} 22. c3 {[%emt 0:01:09]} Rxf1 {[%emt 0:03:15]} 23. Rxf1 {[%emt 0:02:20]} a5 {[%emt 0:01:48]} 24. Qf3 {[%emt 0:40:30]} Qxf3 {[%emt 0:02:21]} 25. Nxf3 {[%emt 0:00:09]} axb4 {[%emt 0:00:43]} 26. axb4 {[%emt 0:00:05]} Ra3 {[%emt 0:01:01]} 27. Bd2 {[%emt 0:02:36]} Ra2 {[%emt 0:01:34]} 28. Kg3 {[%emt 0:00:14]} c5 {[%emt 0:01:32]} 29. bxc5 {[%emt 0:04:34]} Bxf3 {[%emt 0:01:41]} 30. Kxf3 {[%emt 0:00:02]} Rxd2 {[%emt 0:02:13]} 31. Ra1 {[%emt 0:00:03]} Bxe5 {[%emt 0:02:02]} 32. Ra8+ {[%emt 0:01:22]} Kf7 {[%emt 0:02:01]} 33. dxe5 {[%emt 0:00:04]} Rd5 {[%emt 0:01:18]} 34. c6 {[%emt 0:00:28]} Rc5 {[%emt 0:00:24]} 35. Ra6 {[%emt 0:02:33]} Rxe5 {[%emt 0:01:58]} 36. Kf4 {[%emt 0:00:46]} Rc5 {[%emt 0:01:18]} 37. Ke4 {[%emt 0:00:25]} Ke6 {[%emt 0:11:03]} 1/2-1/2

[Event "FIDE World Cup O10-B 2024"]
[Site "Batumi"]
[Date "2024.06.24"]
[Round "2.11"]
[White "Kazimzade, Mahammad"]
[Black "Popov, Aleksandr And"]
[Result "1-0"]
[ECO "C56"]
[WhiteElo "1594"]
[BlackElo "1661"]
[Annotator "NA RC"]
[PlyCount "65"]
[EventDate "2024.06.23"]
[EventType "swiss"]
[EventCountry "GEO"]
[SourceTitle "playchess.com"]
[Source "ChessBase"]
[SourceQuality "1"]
[TimeControl "5400+30"]

1. e4 {[%emt 0:00:05]} e5 {[%emt 0:00:04]} 2. Nf3 {[%emt 0:00:06]} Nc6 {[%emt 0:00:03]} 3. d4 {[%emt 0:00:05]} exd4 {[%emt 0:00:05]} 4. Bc4 {[%emt 0:00:04]} Nf6 {[%emt 0:00:05]} 5. e5 {[%emt 0:00:19]} d5 {[%emt 0:00:10]} 6. Bb5 {[%emt 0:00:26]} Ne4 {[%emt 0:00:07]} 7. Nxd4 {[%emt 0:00:07]} Bd7 {[%emt 0:00:13]} 8. Bxc6 {[%emt 0:00:32]} bxc6 {[%emt 0:00:05]} 9. O-O {[%emt 0:00:06]} Bc5 {[%emt 0:00:11]} 10. f3 {[%emt 0:00:08]} Ng5 {[%emt 0:00:42]} 11. f4 {[%emt 0:00:06]} Ne4 {[%emt 0:00:46]} 12. Be3 {[%emt 0:03:27]} Qb8 {[%emt 0:02:00]} 13. b3 {[%emt 0:01:43]} Qb6 {[%emt 0:00:45]} 14. c3 {[%emt 0:01:36]} a5 {[%emt 0:00:55]} 15. Kh1 {[%emt 0:01:18]} O-O-O {[%emt 0:07:06]} 16. Qd3 {[%emt 0:04:48]} Kb8 {[%emt 0:06:16]} 17. Nd2 {[%emt 0:00:40]} Nxd2 {[%emt 0:01:04]} 18. Qxd2 {[%emt 0:00:38]} Bc8 {[%emt 0:01:43]} 19. Rfb1 {[%emt 0:01:02]} Bxd4 {[%emt 0:07:28]} 20. Bxd4 {[%emt 0:00:14]} c5 {[%emt 0:06:11]} 21. b4 {[%emt 0:00:26]} Bb7 {[%emt 0:08:05]} 22. Bxc5 {[%emt 0:01:30]} Qb5 {[%emt 0:04:47]} 23. a4 {[%emt 0:00:21]} Qa6 {[%emt 0:01:16]} 24. bxa5 {[%emt 0:01:27]} Qxa5 {[%emt 0:05:41]} 25. Rb5 {[%emt 0:00:07]} Qa6 {[%emt 0:08:24]} 26. Rab1 {[%emt 0:00:09]} Rhe8 {[%emt 0:01:50]} 27. Rxb7+ {[%emt 0:00:39]} Qxb7 {[%emt 0:00:07]} 28. Rxb7+ {[%emt 0:00:03]} Kxb7 {[%emt 0:00:10]} 29. Qb2+ {[%emt 0:00:08]} Kc8 {[%emt 0:00:13]} 30. Qb5 {[%emt 0:00:12]} Re6 {[%emt 0:00:15]} 31. a5 {[%emt 0:00:10]} f6 {[%emt 0:00:58]} 32. a6 {[%emt 0:00:03]} c6 {[%emt 0:00:14]} 33. Qb7# {[%emt 0:00:30]} 1-0

[Event "FIDE World Cup O10-B 2024"]
[Site "Batumi"]
[Date "2024.06.25"]
[Round "3.1"]
[White "Modith Aaroh Mutyalapati"]
[Black "Xia, Joshua"]
[Result "1/2-1/2"]
[ECO "B86"]
[WhiteElo "1866"]
[BlackElo "2060"]
[Annotator "NA RC"]
[PlyCount "79"]
[EventDate "2024.06.23"]
[EventType "swiss"]
[EventCountry "GEO"]
[SourceTitle "playchess.com"]
[Source "ChessBase"]
[SourceQuality "1"]
[TimeControl "5400+30"]

1. e4 {[%emt 0:00:01]} c5 {[%emt 0:00:10]} 2. Nf3 {[%emt 0:00:01]} d6 {[%emt 0:00:05]} 3. d4 {[%emt 0:00:07]} cxd4 {[%emt 0:00:04]} 4. Nxd4 {[%emt 0:00:07]} Nf6 {[%emt 0:00:03]} 5. Nc3 {[%emt 0:00:09]} a6 {[%emt 0:00:04]} 6. Bc4 {[%emt 0:00:05]} e6 {[%emt 0:00:04]} 7. Bb3 {[%emt 0:00:03]} Nbd7 {[%emt 0:00:04]} 8. Bg5 {[%emt 0:00:07]} Nc5 {[%emt 0:03:18] 8...Qa5 is vanishing.} 9. f4 {[%emt 0:00:01] B86: Sicilian Scheveningen/Najdorf: 6 Bc4, without early ...b5.} Be7 $1 {[%emt 0:00:52]} 10. Qf3 {[%emt 0:00:01] 10.Qe2 deserves study.} Nfd7 $146 {[%emt 0:05:44]} ({Predecessor:} 10... O-O 11. O-O-O Qc7 12. Kb1 b5 13. f5 Nxb3 14. cxb3 Bd7 15. Rc1 Qb6 16. Rhd1 Rac8 {0-1 Danin,A (2587)-Kraemer,M (2570) AUT-chT 1617 2016 (3.2)}) 11. Bxe7 {[%emt 0:00:56]} Qxe7 {[%emt 0:00:12]} 12. O-O-O {[%emt 0:00:29]} Nb6 {[%emt 0:12:08]} 13. Rhe1 {[%emt 0:03:33]} Nxb3+ {[%emt 0:08:36]} 14. axb3 {[%emt 0:01:37]} O-O {[%emt 0:00:25]} 15. e5 {[%emt 0:00:27]} dxe5 {[%emt 0:03:10]} 16. Rxe5 {[%emt 0:06:31]} Rd8 {[%emt 0:09:55]} 17. Qg3 {[%emt 0:08:22]} Qf8 {[%emt 0:10:44]} 18. Ne4 {[%emt 0:01:39]} Nd5 {[%emt 0:02:04]} 19. c4 {[%emt 0:01:58]} Ne7 $1 {[%emt 0:01:36]} 20. Rh5 {[%emt 0:09:26]} Ng6 $1 {[%emt 0:03:17]} 21. Ng5 {[%emt 0:00:11]} h6 {[%emt 0:02:18]} (21... f6 $17 22. Nxh7 (22. Ngxe6 Bxe6 23. Nxe6 Rxd1+ 24. Kxd1 Qd6+ 25. Rd5 Qxe6 $17) 22... Qf7) 22. Ngf3 {[%emt 0:00:01]} a5 $17 {[%emt 0:04:03]} 23. Nc2 {[%emt 0:30:48]} Rxd1+ {[%emt 0:00:29]} 24. Kxd1 {[%emt 0:00:01]} Qd6+ {[%emt 0:00:43]} 25. Nd2 {[%emt 0:01:06]} Qxf4 {[%emt 0:00:41]} 26. Rc5 {[%emt 0:02:25]} e5 {[%emt 0:04:28]} 27. Rd5 {[%emt 0:05:10]} Be6 {[%emt 0:01:58]} 28. Rd3 {[%emt 0:00:35]} Rb8 {[%emt 0:05:07]} 29. Ne3 {[%emt 0:00:52]} Kf8 {[%emt 0:08:04]} 30. Nd5 {[%emt 0:00:44]} Qxg3 {[%emt 0:00:32]} 31. hxg3 {[%emt 0:00:09]} Rd8 {[%emt 0:01:21]} 32. Nb4 {[%emt 0:00:37]} Ke7 {[%emt 0:01:41]} 33. Nd5+ {[%emt 0:00:30]} Kf8 {[%emt 0:01:58]} 34. Nb4 {[%emt 0:00:01]} Rxd3 {[%emt 0:00:23]} 35. Nxd3 {[%emt 0:00:02]} b6 {[%emt 0:00:18]} 36. c5 {[%emt 0:00:44]} bxc5 {[%emt 0:00:39]} 37. Nxc5 {[%emt 0:00:20]} Bd5 {[%emt 0:00:13]} 38. Nc4 {[%emt 0:00:28]} Bxc4 {[%emt 0:02:30]} 39. bxc4 {[%emt 0:00:01]} Ke7 {[%emt 0:03:43]} 40. Nb7 {[%emt 0:00:02]} 1/2-1/2

[Event "FIDE World Cup O10-B 2024"]
[Site "Batumi"]
[Date "2024.06.25"]
[Round "3.2"]
[White "Akramov, Khasan"]
[Black "Yu, Zechen"]
[Result "1/2-1/2"]
[ECO "E05"]
[WhiteElo "1718"]
[BlackElo "1889"]
[Annotator "NA RC"]
[PlyCount "96"]
[EventDate "2024.06.23"]
[EventType "swiss"]
[EventCountry "GEO"]
[SourceTitle "playchess.com"]
[Source "ChessBase"]
[SourceQuality "1"]
[TimeControl "5400+30"]

1. c4 {[%emt 0:00:01]} e6 {[%emt 0:00:06]} 2. g3 {[%emt 0:00:07]} d5 {[%emt 0:00:04]} 3. Bg2 {[%emt 0:00:04]} Nf6 {[%emt 0:00:06]} 4. d4 {[%emt 0:00:08]} Be7 {[%emt 0:00:05]} 5. Nf3 {[%emt 0:00:04]} O-O {[%emt 0:00:07]} 6. O-O {[%emt 0:00:03]} dxc4 {[%emt 0:00:04]} 7. Qc2 {[%emt 0:00:12]} b5 {[%emt 0:00:07]} 8. a4 {[%emt 0:00:34] E05: Open Catalan: 5 Nf3 Be7.} b4 {[%emt 0:00:22]} 9. Qxc4 {[%emt 0:00:16]} Ba6 {[%emt 0:00:18]} 10. Qc2 {[%emt 0:00:17]} Nbd7 {[%emt 0:01:27]} 11. Re1 {[%emt 0:01:55]} c5 {[%emt 0:09:17]} 12. Ne5 {[%emt 0:06:58]} Nxe5 {[%emt 0:00:47]} 13. dxe5 {[%emt 0:03:15]} Nd5 {[%emt 0:00:07]} 14. Nd2 {[%emt 0:11:45]} Rc8 {[%emt 0:05:06]} 15. b3 {[%emt 0:06:20]} Nc3 {[%emt 0:03:39]} 16. Ne4 {[%emt 0:01:10]} c4 {[%emt 0:00:52]} 17. Bb2 {[%emt 0:06:54]} cxb3 {[%emt 0:01:28]} 18. Qxb3 {[%emt 0:00:05]} Nxe2+ {[%emt 0:00:31]} 19. Kh1 {[%emt 0:00:07]} Nd4 {[%emt 0:00:49]} 20. Bxd4 {[%emt 0:00:59]} Qxd4 {[%emt 0:00:08]} 21. Rad1 {[%emt 0:00:32]} Qxe5 {[%emt 0:00:57]} 22. Rd7 {[%emt 0:09:45]} Rc7 {[%emt 0:05:00]} 23. Nf6+ {[%emt 0:18:19]} Bxf6 {[%emt 0:00:36]} 24. Rxe5 {[%emt 0:00:42]} Rc1+ $17 {[%emt 0:00:13]} (24... Rxd7 $19 {and Black stays clearly on top.} 25. Re3 Rfd8) 25. Rd1 {[%emt 0:01:41]} Rxd1+ {[%emt 0:02:09]} 26. Qxd1 {[%emt 0:00:06]} Bxe5 {[%emt 0:00:03]} 27. Be4 {[%emt 0:04:12]} g6 {[%emt 0:16:23]} 28. Qd7 {[%emt 0:00:57]} Rc8 {[%emt 0:00:28]} 29. h4 {[%emt 0:02:27]} Rc1+ {[%emt 0:04:20]} 30. Kh2 {[%emt 0:00:05]} Bc7 {[%emt 0:00:48]} 31. Qd4 {[%emt 0:00:55]} Bb6 {[%emt 0:01:33]} 32. Qxb4 {[%emt 0:01:42]} Rc4 {[%emt 0:00:08]} 33. Qe1 {[%emt 0:00:14]} Rxa4 {[%emt 0:00:12]} 34. Bd5 {[%emt 0:06:17]} Bc4 {[%emt 0:09:18]} 35. Bxc4 {[%emt 0:02:21]} Rxc4 {[%emt 0:00:05]} 36. Qe5 {[%emt 0:00:30]} Rc5 {[%emt 0:00:56]} 37. Qb8+ {[%emt 0:01:12]} Kg7 {[%emt 0:00:10]} 38. Kh3 {[%emt 0:00:51]} Rd5 {[%emt 0:01:00]} 39. f3 {[%emt 0:00:43]} Bd4 {[%emt 0:00:09]} 40. f4 {[%emt 0:00:49]} a5 {[%emt 0:00:11]} 41. g4 {[%emt 0:01:15]} h5 {[%emt 0:00:17]} 42. g5 {[%emt 0:01:47]} Rf5 {[%emt 0:01:20]} 43. Qd6 {[%emt 0:03:22]} Be3 {[%emt 0:00:14]} 44. Qd3 {[%emt 0:00:23]} Bxf4 {[%emt 0:00:05]} 45. Qc3+ {[%emt 0:00:06]} Kh7 {[%emt 0:00:18]} 46. Qd4 {[%emt 0:00:51]} Be5 {[%emt 0:00:12]} 47. Qd3 {[%emt 0:00:24]} Rf2 {[%emt 0:03:22]} 48. Qxg6+ {[%emt 0:00:05]} Kxg6 {[%emt 0:22:24]} 1/2-1/2

[Event "FIDE World Cup O10-B 2024"]
[Site "Batumi"]
[Date "2024.06.25"]
[Round "3.3"]
[White "Ling, Chenxuan"]
[Black "Shen, Houlin"]
[Result "1/2-1/2"]
[ECO "A43"]
[WhiteElo "1868"]
[BlackElo "1583"]
[Annotator "NA RC"]
[PlyCount "122"]
[EventDate "2024.06.23"]
[EventType "swiss"]
[EventCountry "GEO"]
[SourceTitle "playchess.com"]
[Source "ChessBase"]
[SourceQuality "1"]
[TimeControl "5400+30"]

1. d4 {[%emt 0:00:05]} Nf6 {[%emt 0:00:06]} 2. Nf3 {[%emt 0:00:09]} c5 {[%emt 0:02:17]} 3. d5 {[%emt 0:00:02]} b5 {[%emt 0:00:18]} 4. Bg5 {[%emt 0:00:07]} Bb7 {[%emt 0:21:40]} 5. Bxf6 {[%emt 1:32:37]} exf6 {[%emt 0:02:50]} 6. e3 {[%emt 0:00:00]} a6 {[%emt 0:01:47]} 7. a4 {[%emt 0:00:00]} b4 {[%emt 0:02:49]} 8. Bc4 {[%emt 0:00:00]} d6 {[%emt 1:02:43]} 9. e4 {[%emt 0:00:00]} Nd7 {[%emt 0:00:00]} 10. O-O {[%emt 0:00:00]} g6 {[%emt 0:00:00]} 11. Nbd2 {[%emt 0:00:00]} Bg7 {[%emt 0:00:00]} 12. Be2 {[%emt 0:00:00]} O-O {[%emt 0:00:00]} 13. Nc4 {[%emt 0:00:00]} Ne5 {[%emt 0:00:00]} 14. Nfd2 {[%emt 0:00:00]} f5 {[%emt 0:00:00]} 15. Rb1 {[%emt 0:00:00]} Nxc4 {[%emt 0:00:00]} 16. Bxc4 {[%emt 0:00:00]} fxe4 {[%emt 0:00:00]} 17. Nxe4 {[%emt 0:00:00]} f5 {[%emt 0:00:00]} 18. Ng3 {[%emt 0:00:00]} Qh4 {[%emt 0:00:00]} 19. f4 {[%emt 0:00:00]} Bc8 {[%emt 0:00:00]} 20. Qf3 {[%emt 0:00:00]} Bd7 {[%emt 0:00:00]} 21. b3 {[%emt 0:00:00]} Rfe8 {[%emt 0:00:00]} 22. Ne2 {[%emt 0:00:00]} a5 {[%emt 0:00:00]} 23. g3 {[%emt 0:00:00]} Qe7 {[%emt 0:00:00]} 24. Kg2 {[%emt 0:00:00]} Qf7 {[%emt 0:00:00]} 25. Ng1 {[%emt 0:00:00]} Re7 {[%emt 0:00:00]} 26. Nh3 {[%emt 0:00:00]} Bf6 {[%emt 0:00:00]} 27. Rbe1 {[%emt 0:00:00]} Rae8 {[%emt 0:09:30]} 28. Rxe7 {[%emt 0:00:00]} Qxe7 {[%emt 0:00:00]} 29. Nf2 {[%emt 0:00:00]} Kg7 {[%emt 0:00:00]} 30. Nd3 {[%emt 0:00:00]} Bc3 {[%emt 0:00:00]} 31. Nc1 {[%emt 0:00:00]} Qf6 {[%emt 0:00:00]} 32. Ne2 {[%emt 0:00:00]} Bd4 {[%emt 0:02:30]} 33. Nxd4 {[%emt 0:00:00]} Qxd4 {[%emt 0:00:00]} 34. Rd1 {[%emt 0:00:00]} Qb2 {[%emt 0:00:00]} 35. Rd2 {[%emt 0:00:00]} Re1 {[%emt 0:00:00]} 36. Re2 {[%emt 0:00:00]} Rc1 {[%emt 0:00:28]} 37. Re7+ {[%emt 0:00:00]} Kf6 {[%emt 0:00:43]} 38. Rxd7 {[%emt 0:00:00]} Rxc2+ {[%emt 0:00:10]} 39. Kg1 {[%emt 0:00:00]} Qa1+ {[%emt 0:00:51]} 40. Bf1 {[%emt 0:00:00]} Qd4+ {[%emt 0:00:11]} 41. Kh1 {[%emt 0:18:00]} Qd2 {[%emt 0:01:09]} 42. Rxd6+ {[%emt 0:00:00]} Kg7 {[%emt 0:00:09]} 43. Qe2 {[%emt 0:00:00]} Qxe2 {[%emt 0:00:22]} 44. Bxe2 {[%emt 0:00:00]} Rxe2 {[%emt 0:00:08]} 45. Rc6 {[%emt 0:00:00]} Rc2 {[%emt 0:00:26]} 46. Rb6 {[%emt 0:00:00]} Kf7 {[%emt 0:01:03]} 47. Rb7+ {[%emt 0:00:00]} Ke8 {[%emt 0:00:29]} 48. d6 {[%emt 0:00:00]} c4 {[%emt 0:01:09]} 49. bxc4 {[%emt 0:00:00]} Rxc4 {[%emt 0:00:11]} 50. Kg2 {[%emt 0:00:00]} Rc6 {[%emt 0:00:30]} 51. Rb5 {[%emt 0:00:00]} Ra6 {[%emt 0:00:10]} 52. Kf3 {[%emt 0:00:00]} Kd7 {[%emt 0:00:05]} 53. Ke3 {[%emt 0:00:00]} Kxd6 {[%emt 0:00:13]} 54. Kd4 {[%emt 0:00:00]} Ke6 {[%emt 0:00:55]} 55. Kc5 {[%emt 0:00:00]} Rd6 {[%emt 0:00:20]} 56. Rxa5 {[%emt 0:07:30]} b3 {[%emt 0:02:18]} 57. Ra8 b2 {[%emt 0:00:30]} 58. Rb8 Rd2 {[%emt 0:00:30]} 59. a5 Rc2+ {[%emt 0:00:30]} 60. Kd4 {[%emt 0:02:00]} Kd6 {[%emt 0:00:30]} 61. a6 {[%emt 0:00:30]} Kc7 {[%emt 0:00:30]} 1/2-1/2

[Event "FIDE World Cup O10-B 2024"]
[Site "Batumi"]
[Date "2024.06.25"]
[Round "3.4"]
[White "Zabelin, Platon"]
[Black "Azimov, Yasin"]
[Result "1-0"]
[ECO "D52"]
[WhiteElo "1799"]
[BlackElo "1833"]
[Annotator "NA RC"]
[PlyCount "85"]
[EventDate "2024.06.23"]
[EventType "swiss"]
[EventCountry "GEO"]
[SourceTitle "playchess.com"]
[Source "ChessBase"]
[SourceQuality "1"]
[TimeControl "5400+30"]

1. d4 {[%emt 0:01:37]} Nf6 {[%emt 0:00:08]} 2. c4 {[%emt 0:00:17]} e6 {[%emt 0:00:12]} 3. Nc3 {[%emt 0:00:19]} Bb4 {[%emt 0:00:11]} 4. Qc2 {[%emt 0:00:11]} d5 {[%emt 0:00:18]} 5. cxd5 {[%emt 0:00:20]} exd5 {[%emt 0:00:29]} 6. Bg5 {[%emt 0:00:12]} O-O {[%emt 0:01:01]} 7. e3 {[%emt 0:00:14]} h6 {[%emt 0:00:53]} 8. Bh4 {[%emt 0:00:13]} c6 {[%emt 0:03:21]} 9. Bd3 {[%emt 0:00:14]} Nbd7 {[%emt 0:06:12]} 10. Nf3 {[%emt 0:03:53]} Qa5 {[%emt 0:06:44]} 11. O-O {[%emt 0:01:28]} Re8 {[%emt 0:01:23]} 12. a3 {[%emt 0:09:09]} Bxc3 {[%emt 0:01:15]} 13. Qxc3 {[%emt 0:01:23]} Qxc3 {[%emt 0:01:02]} 14. bxc3 {[%emt 0:00:05]} Ne4 {[%emt 0:00:07]} 15. c4 {[%emt 0:01:42]} dxc4 {[%emt 0:01:43]} 16. Bxc4 {[%emt 0:00:40]} g5 {[%emt 0:00:43]} 17. Bg3 {[%emt 0:00:27]} g4 {[%emt 0:00:54]} 18. Ne5 {[%emt 0:01:14]} Nxe5 {[%emt 0:00:19]} 19. Bxe5 {[%emt 0:00:09]} Nd2 {[%emt 0:00:28]} 20. Rfc1 {[%emt 0:00:14]} Nxc4 {[%emt 0:01:08]} 21. Rxc4 {[%emt 0:00:04]} Be6 {[%emt 0:00:19]} 22. Rb4 {[%emt 0:00:53]} b5 {[%emt 0:02:00]} 23. e4 {[%emt 0:05:08]} Bc4 {[%emt 0:01:14]} 24. f3 {[%emt 0:01:23]} c5 {[%emt 0:01:40]} 25. Rb2 {[%emt 0:01:47]} Rad8 {[%emt 0:00:31]} 26. Bf6 {[%emt 0:03:10]} Rd6 {[%emt 0:00:03]} 27. Be5 {[%emt 0:01:42]} Rd7 {[%emt 0:00:16]} 28. Bf4 {[%emt 0:00:28]} cxd4 {[%emt 0:01:36]} 29. Bxh6 {[%emt 0:01:29]} Rd6 {[%emt 0:02:50]} 30. Bc1 {[%emt 0:07:00]} gxf3 {[%emt 0:10:25]} 31. gxf3 {[%emt 0:00:08]} f5 {[%emt 0:00:10]} 32. Rg2+ {[%emt 0:02:10]} Kf7 {[%emt 0:00:12]} 33. Bf4 {[%emt 0:07:00]} Rg6 {[%emt 0:00:16]} 34. Rxg6 {[%emt 0:01:36]} Kxg6 {[%emt 0:00:08]} 35. e5 {[%emt 0:00:12]} Kf7 {[%emt 0:00:59]} 36. Kf2 {[%emt 0:01:49]} Re6 {[%emt 0:04:04]} 37. h4 {[%emt 0:02:52]} Ra6 {[%emt 0:03:22]} 38. Bd2 {[%emt 0:00:17]} Ke6 {[%emt 0:00:18]} 39. h5 {[%emt 0:06:12]} Kxe5 {[%emt 0:11:06]} 40. h6 {[%emt 0:00:17]} Bg8 {[%emt 0:00:07]} 41. Rg1 {[%emt 0:01:05]} Bh7 {[%emt 0:00:12]} 42. Rg7 {[%emt 0:00:35]} f4 {[%emt 0:01:10]} 43. Rxh7 {[%emt 0:00:13]} 1-0

[Event "FIDE World Cup O10-B 2024"]
[Site "Batumi"]
[Date "2024.06.25"]
[Round "3.5"]
[White "Shogdzhiev, Roman"]
[Black "Muhammad Shayan Noushad Ibrahi"]
[Result "1-0"]
[ECO "B15"]
[WhiteElo "2060"]
[BlackElo "1785"]
[Annotator "NA RC"]
[PlyCount "75"]
[EventDate "2024.06.23"]
[EventType "swiss"]
[EventCountry "GEO"]
[SourceTitle "playchess.com"]
[Source "ChessBase"]
[SourceQuality "1"]
[TimeControl "5400+30"]

1. e4 {[%emt 0:00:02]} c6 {[%emt 0:01:17]} 2. d4 {[%emt 0:00:02]} d5 {[%emt 0:01:30]} 3. Nc3 {[%emt 0:00:02]} dxe4 4. Nxe4 {[%emt 0:00:01]} Nf6 {[%emt 0:03:04]} 5. Nxf6+ {[%emt 0:00:01]} exf6 {[%emt 0:01:25]} 6. Be3 {[%emt 0:00:02]} Bd6 {[%emt 0:01:35]} 7. Bd3 {[%emt 0:00:05]} Be6 {[%emt 0:02:19]} 8. Ne2 {[%emt 0:00:34]} Nd7 {[%emt 0:04:04]} 9. O-O {[%emt 0:04:36]} O-O {[%emt 0:05:33]} 10. c4 {[%emt 0:00:49]} Re8 {[%emt 0:08:42]} 11. Nc3 {[%emt 0:07:18]} Nf8 {[%emt 0:09:27]} 12. Qd2 {[%emt 0:04:31]} Bb4 {[%emt 0:12:02]} 13. a3 {[%emt 0:07:07]} Bxc3 {[%emt 0:01:23]} 14. Qxc3 {[%emt 0:00:22]} f5 {[%emt 0:04:34]} 15. Rad1 {[%emt 0:11:44]} Ng6 {[%emt 0:02:00]} 16. Qc1 {[%emt 0:10:50]} h6 {[%emt 0:02:03]} 17. f4 {[%emt 0:00:43]} Qf6 {[%emt 0:04:56]} 18. Rfe1 {[%emt 0:03:01]} Rad8 $16 {[%emt 0:02:53]} 19. Qc2 {[%emt 0:01:55]} Re7 {[%emt 0:01:43]} 20. Qf2 {[%emt 0:06:09]} Red7 {[%emt 0:02:47]} 21. Bf1 {[%emt 0:05:21]} Ne7 {[%emt 0:02:13]} 22. b4 {[%emt 0:02:39]} Nc8 {[%emt 0:02:06]} 23. d5 {[%emt 0:00:13]} cxd5 {[%emt 0:00:24]} 24. Bd4 {[%emt 0:00:01]} Qg6 {[%emt 0:01:03]} 25. c5 {[%emt 0:00:04]} a6 {[%emt 0:01:41]} 26. a4 {[%emt 0:00:25]} Ne7 {[%emt 0:05:52]} 27. b5 {[%emt 0:00:05]} axb5 {[%emt 0:00:23]} 28. axb5 {[%emt 0:00:02]} Rc7 {[%emt 0:01:12]} 29. c6 {[%emt 0:04:45]} bxc6 {[%emt 0:01:02]} 30. Bb6 {[%emt 0:00:06]} Rdc8 {[%emt 0:00:20]} 31. Bxc7 {[%emt 0:00:10]} Rxc7 {[%emt 0:00:09]} 32. b6 {[%emt 0:00:03]} Rb7 {[%emt 0:00:38]} 33. Ba6 {[%emt 0:02:25]} Rb8 {[%emt 0:00:06]} 34. b7 {[%emt 0:00:09]} d4 {[%emt 0:00:17]} 35. Qxd4 {[%emt 0:01:09]} Bd5 {[%emt 0:00:08]} 36. Rd2 {[%emt 0:00:28]} Qd6 {[%emt 0:00:26]} 37. Rde2 {[%emt 0:06:40]} c5 {[%emt 0:00:43]} 38. Qe5 {[%emt 0:00:49]} 1-0